[Event "FIDE WCCC Open-08 2024"]
[Site "Montesilvano"]
[Date "2024.11.22"]
[Round "7.10"]
[White "Adilbek, Adinur"]
[Black "Ayaan Phutane"]
[Result "0-1"]
[ECO "E05"]
[WhiteElo "1651"]
[BlackElo "1796"]
[Annotator "NA RC"]
[PlyCount "110"]
[EventDate "2024.11.18"]
[EventType "swiss"]
[EventCountry "ITA"]
[SourceTitle "playchess.com"]
[Source "ChessBase"]
[SourceQuality "1"]
[TimeControl "5400+30"]

1. d4 {[%emt 0:00:02]} Nf6 {[%emt 0:00:11]} 2. Nf3 {[%emt 0:00:08]} e6 {[%emt 0:00:12]} 3. g3 {[%emt 0:00:32]} d5 {[%emt 0:00:04]} 4. Bg2 {[%emt 0:00:08]} Be7 {[%emt 0:00:05]} 5. O-O {[%emt 0:00:09]} O-O {[%emt 0:00:03]} 6. c4 {[%emt 0:00:35]} dxc4 {[%emt 0:00:11]} 7. Qc2 {[%emt 0:01:43]} b5 {[%emt 0:00:13]} 8. a4 {[%emt 0:00:39]} b4 {[%emt 0:00:07]} 9. Nbd2 {[%emt 0:10:16]} Nd5 {[%emt 0:12:11]} 10. Nxc4 {[%emt 0:01:45]} Ba6 {[%emt 0:01:24]} 11. b3 {[%emt 0:04:16]} Nd7 {[%emt 0:10:05]} 12. Bb2 {[%emt 0:03:46]} Bf6 {[%emt 0:13:26]} 13. a5 {[%emt 0:02:07]} g6 {[%emt 0:16:02]} 14. Rfd1 {[%emt 0:07:46]} Bg7 {[%emt 0:08:23]} 15. Rac1 {[%emt 0:01:04]} Rc8 {[%emt 0:05:06]} 16. e4 {[%emt 1:03:34]} N5f6 {[%emt 0:05:29]} 17. e5 {[%emt 0:00:00]} Nd5 {[%emt 0:00:22]} 18. Bf1 {[%emt 0:00:00]} Bb7 {[%emt 0:01:39]} 19. Be2 {[%emt 0:00:00]} Nb8 {[%emt 0:03:24]} 20. Nfd2 {[%emt 0:00:00]} Qe7 {[%emt 0:04:47]} 21. Ne4 {[%emt 0:00:00]} Na6 {[%emt 0:00:54]} 22. Qb1 {[%emt 0:00:00]} Rfd8 {[%emt 0:02:41]} 23. Bf3 {[%emt 0:00:00]} Kh8 {[%emt 0:02:07]} 24. h4 {[%emt 0:00:00]} Ba8 {[%emt 0:03:48]} 25. Qd3 {[%emt 0:00:00]} Bh6 {[%emt 0:01:38]} 26. Rc2 {[%emt 0:00:00]} Rb8 {[%emt 0:02:53]} 27. h5 {[%emt 0:00:00]} Bb7 {[%emt 0:00:40]} 28. Kg2 {[%emt 0:00:00]} Rg8 {[%emt 0:03:24]} 29. Rh1 {[%emt 0:00:00]} gxh5 {[%emt 0:00:11]} 30. Rxh5 {[%emt 0:00:00]} Nf4+ {[%emt 0:00:06]} 31. Kf1 {[%emt 0:00:00]} Nxd3 {[%emt 0:00:37]} 32. Rxh6 {[%emt 0:00:00]} Rg6 {[%emt 0:00:26]} 33. Rh4 {[%emt 0:00:00]} Nxb2 {[%emt 0:00:35]} 34. Nxb2 {[%emt 0:00:00]} h6 {[%emt 0:00:56]} 35. Nd3 {[%emt 0:00:00]} Rd8 {[%emt 0:01:07]} 36. Nf4 {[%emt 0:00:00]} Rxd4 {[%emt 0:01:16]} 37. Nf6 {[%emt 0:00:00]} Rxf6 {[%emt 0:00:36]} 38. Bxb7 {[%emt 0:00:00]} Rfxf4 {[%emt 0:00:16]} 39. Rxf4 {[%emt 0:00:00]} Rxf4 {[%emt 0:00:07]} 40. gxf4 {[%emt 0:00:00]} Nc5 {[%emt 0:00:05]} 41. a6 {[%emt 0:00:00]} Nxb3 {[%emt 0:00:14]} 42. Rc6 {[%emt 0:00:00]} Na5 {[%emt 0:00:27]} 43. Rc1 {[%emt 0:00:00]} b3 {[%emt 0:00:10]} 44. Rb1 {[%emt 0:00:00]} Qb4 {[%emt 0:00:12]} 45. Rd1 {[%emt 0:00:00]} b2 {[%emt 0:00:18]} 46. Rd8+ {[%emt 0:00:00]} Kg7 {[%emt 0:00:05]} 47. Rd1 {[%emt 0:00:00]} b1=Q {[%emt 0:00:09]} 48. Rxb1 {[%emt 0:00:00]} Qxb1+ {[%emt 0:00:08]} 49. Kg2 {[%emt 0:00:00]} Nxb7 {[%emt 0:00:04]} 50. axb7 {[%emt 0:00:00]} Qxb7+ {[%emt 0:00:10]} 51. Kg3 {[%emt 0:00:00]} Qh1 {[%emt 0:00:11]} 52. f3 {[%emt 0:00:00]} Qg1+ {[%emt 0:00:03]} 53. Kh4 {[%emt 0:00:00]} Qh2+ {[%emt 0:00:36]} 54. Kg4 {[%emt 0:00:00]} Kg6 {[%emt 0:00:11]} 55. f5+ {[%emt 0:00:00]} exf5# {[%emt 0:00:01]} 0-1

[Event "FIDE WCCC Open-08 2024"]
[Site "Montesilvano"]
[Date "2024.11.22"]
[Round "7.11"]
[White "Lan, Kai Zhou"]
[Black "Nurshin, Nurali"]
[Result "0-1"]
[ECO "B28"]
[WhiteElo "1784"]
[BlackElo "1612"]
[Annotator "NA RC"]
[PlyCount "72"]
[EventDate "2024.11.18"]
[EventType "swiss"]
[EventCountry "ITA"]
[SourceTitle "playchess.com"]
[Source "ChessBase"]
[SourceQuality "1"]
[TimeControl "5400+30"]

1. e4 {[%emt 0:00:01]} c5 {[%emt 1:31:00]} 2. Nf3 {[%emt 0:00:39]} a6 {[%emt 0:00:00]} 3. c3 {[%emt 0:00:30]} d5 {[%emt 0:00:00]} 4. exd5 {[%emt 0:00:08]} Qxd5 {[%emt 0:00:00]} 5. d4 {[%emt 0:00:12]} e6 {[%emt 0:00:00]} 6. Be2 {[%emt 0:01:07]} Nf6 {[%emt 0:00:00]} 7. O-O {[%emt 0:00:18]} cxd4 {[%emt 0:00:00]} 8. cxd4 {[%emt 0:01:49]} Bd6 {[%emt 0:00:00]} 9. Nc3 {[%emt 0:05:43]} Qa5 {[%emt 0:00:00]} 10. Bd2 {[%emt 0:01:00]} Qd8 {[%emt 0:00:00]} 11. Ne5 {[%emt 0:01:09]} O-O {[%emt 0:00:00]} 12. f4 {[%emt 0:01:08]} Qb6 {[%emt 0:00:00]} 13. Be3 {[%emt 0:01:46]} Nc6 {[%emt 0:00:00]} 14. Nc4 {[%emt 0:01:48]} Qc7 {[%emt 0:00:00]} 15. Bf3 {[%emt 0:02:55]} Rd8 {[%emt 0:00:00]} 16. d5 {[%emt 0:04:14]} exd5 {[%emt 0:00:00]} 17. Bb6 {[%emt 0:00:55]} Bc5+ {[%emt 0:00:00]} 18. Bxc5 {[%emt 0:00:11]} dxc4 {[%emt 0:00:00]} 19. Qe2 {[%emt 0:01:56]} Nd4 {[%emt 0:00:00]} 20. Bxd4 {[%emt 0:02:21]} Rxd4 {[%emt 0:00:00]} 21. Nd5 {[%emt 0:01:23]} Rxd5 {[%emt 0:00:00]} 22. Bxd5 {[%emt 0:00:26]} Qc5+ {[%emt 0:00:00]} 23. Qf2 {[%emt 0:04:00]} Qxd5 {[%emt 0:00:00]} 24. Rfd1 {[%emt 0:02:29]} Qa5 {[%emt 0:00:00]} 25. Qd4 {[%emt 0:00:54]} Bg4 {[%emt 0:00:00]} 26. Re1 {[%emt 0:01:31]} h6 {[%emt 0:00:00]} 27. Re5 {[%emt 0:01:17]} Qd8 {[%emt 0:00:00]} 28. Qxc4 {[%emt 0:01:39]} Rc8 {[%emt 0:00:00]} 29. Qb4 {[%emt 0:02:13]} Rc2 {[%emt 0:00:00]} 30. Qxb7 {[%emt 0:05:06]} Qd4+ {[%emt 0:00:00]} 31. Kh1 {[%emt 0:00:17]} Qxf4 {[%emt 0:00:00]} 32. Qb8+ {[%emt 0:02:02]} Kh7 {[%emt 0:00:00]} 33. Rc5 {[%emt 0:00:54]} Qxb8 {[%emt 0:00:00]} 34. Rxc2 {[%emt 0:00:12]} Bf5 {[%emt 0:00:00]} 35. Rf2 {[%emt 0:00:21]} Ng4 {[%emt 0:00:00]} 36. g3 {[%emt 0:00:15]} Nxf2+ {[%emt 0:00:00]} 0-1

[Event "FIDE WCCC Open-08 2024"]
[Site "Montesilvano"]
[Date "2024.11.22"]
[Round "7.12"]
[White "Zhang, Yangming"]
[Black "Jevglevski, Lev"]
[Result "1/2-1/2"]
[ECO "C09"]
[WhiteElo "1770"]
[BlackElo "1602"]
[Annotator "NA RC"]
[PlyCount "56"]
[EventDate "2024.11.18"]
[EventType "swiss"]
[EventCountry "ITA"]
[SourceTitle "playchess.com"]
[Source "ChessBase"]
[SourceQuality "1"]
[TimeControl "5400+30"]

1. e4 {[%emt 0:00:33]} e6 {[%emt 0:00:19]} 2. d4 {[%emt 0:00:37]} d5 {[%emt 0:00:18]} 3. Nd2 {[%emt 0:00:32]} c5 {[%emt 0:00:12]} 4. Ngf3 {[%emt 0:00:39]} Nc6 {[%emt 0:06:31]} 5. exd5 {[%emt 0:04:45]} exd5 {[%emt 0:00:37]} 6. Bb5 {[%emt 0:00:47]} Bd6 {[%emt 0:10:12]} 7. O-O {[%emt 0:05:17]} Nge7 {[%emt 0:03:18]} 8. dxc5 {[%emt 0:05:23]} Bxc5 {[%emt 0:00:30]} 9. Nb3 {[%emt 0:01:28]} Bb6 {[%emt 0:00:48]} 10. Bf4 {[%emt 0:03:34]} O-O {[%emt 0:02:28]} 11. Re1 {[%emt 0:02:40]} Nf5 {[%emt 0:01:54]} 12. Qd2 {[%emt 0:09:28]} Be6 {[%emt 0:02:38]} 13. Rad1 {[%emt 0:00:50]} Qf6 {[%emt 0:02:13]} 14. c3 {[%emt 1:00:57]} h6 {[%emt 0:05:13]} 15. Be5 {[%emt 0:00:00]} Nxe5 {[%emt 0:04:10]} 16. Nxe5 {[%emt 0:00:00]} Nd6 {[%emt 0:01:11]} 17. Bd3 {[%emt 0:00:00]} Rad8 {[%emt 0:00:53]} 18. Nd4 {[%emt 0:00:00]} Rfe8 {[%emt 0:03:41]} 19. Kh1 {[%emt 0:00:00]} Bf5 {[%emt 0:03:10]} 20. Bxf5 {[%emt 0:00:00]} Nxf5 {[%emt 0:02:52]} 21. f4 {[%emt 0:00:00]} Nd6 {[%emt 0:00:59]} 22. a4 {[%emt 0:00:00]} Ne4 {[%emt 0:00:36]} 23. Qe3 {[%emt 0:00:00]} Bc7 {[%emt 0:12:52]} 24. Ndf3 {[%emt 0:00:00]} Qb6 {[%emt 0:02:29]} 25. Qxb6 {[%emt 0:00:00]} Bxb6 {[%emt 0:01:19]} 26. Nd3 {[%emt 0:00:00]} f6 {[%emt 0:05:35]} 27. g3 {[%emt 0:00:00]} Bf2 {[%emt 0:01:44]} 28. Rf1 {[%emt 0:00:00]} Bb6 {[%emt 0:01:33]} 1/2-1/2

[Event "FIDE WCCC Open-08 2024"]
[Site "Montesilvano"]
[Date "2024.11.22"]
[Round "7.13"]
[White "Elemes, Nurmukhamed"]
[Black "Nguyen Thanh San"]
[Result "1-0"]
[ECO "E12"]
[WhiteElo "1735"]
[BlackElo "1493"]
[Annotator "NA RC"]
[PlyCount "88"]
[EventDate "2024.11.18"]
[EventType "swiss"]
[EventCountry "ITA"]
[SourceTitle "playchess.com"]
[Source "ChessBase"]
[SourceQuality "1"]
[TimeControl "5400+30"]

1. d4 {[%emt 0:00:01]} Nf6 {[%emt 0:00:49]} 2. c4 {[%emt 0:00:22]} e6 {[%emt 0:00:04]} 3. Nf3 {[%emt 0:00:37]} b6 {[%emt 0:01:40]} 4. a3 {[%emt 0:01:00]} Bb7 {[%emt 0:02:00]} 5. Nc3 {[%emt 0:01:30]} d5 {[%emt 0:00:01]} 6. cxd5 {[%emt 0:00:30]} Nxd5 {[%emt 0:00:07]} 7. Qc2 {[%emt 0:00:16]} Nxc3 {[%emt 0:00:13]} 8. bxc3 {[%emt 0:00:20]} Nd7 {[%emt 0:00:11]} 9. e4 {[%emt 0:00:36]} c5 {[%emt 0:01:47]} 10. Bd3 {[%emt 0:01:13]} Rc8 {[%emt 0:00:28]} 11. Qe2 {[%emt 0:01:04]} Be7 {[%emt 0:03:05]} 12. Bb2 {[%emt 0:01:58]} O-O {[%emt 0:01:23]} 13. O-O {[%emt 0:01:13]} Nf6 {[%emt 0:01:37]} 14. e5 {[%emt 0:05:32]} Nd5 {[%emt 0:01:08]} 15. Qe4 {[%emt 0:00:58]} g6 {[%emt 0:00:50]} 16. Qg4 {[%emt 0:02:51]} Qd7 {[%emt 0:10:06]} 17. c4 {[%emt 0:08:23]} f5 {[%emt 0:03:26]} 18. Qg3 {[%emt 0:03:56]} Nc7 {[%emt 0:02:03]} 19. Rfd1 {[%emt 0:05:28]} Qe8 {[%emt 0:03:32]} 20. Qf4 {[%emt 0:12:01]} Kh8 {[%emt 0:21:26]} 21. Be2 {[%emt 0:03:31]} cxd4 {[%emt 0:05:40]} 22. Rxd4 {[%emt 0:03:04]} Qf7 {[%emt 0:06:49]} 23. Rd7 {[%emt 0:04:16]} Bc6 {[%emt 0:00:56]} 24. Rd6 {[%emt 0:03:23]} Bb7 {[%emt 0:01:44]} 25. Rad1 {[%emt 0:02:04]} Bxf3 {[%emt 0:08:57]} 26. Bxf3 {[%emt 0:01:26]} Rcd8 {[%emt 0:02:36]} 27. Qd4 {[%emt 0:00:54]} Qg8 {[%emt 0:07:17]} 28. Qe3 {[%emt 0:04:15]} Na6 {[%emt 0:04:49]} 29. Rd7 {[%emt 0:04:26]} Qf7 {[%emt 0:00:55]} 30. Rxa7 {[%emt 0:06:22]} Nc5 {[%emt 0:00:39]} 31. Rd6 {[%emt 0:02:09]} Kg8 {[%emt 0:00:55]} 32. Rxb6 {[%emt 0:02:13]} f4 {[%emt 0:00:45]} 33. Qe2 {[%emt 0:01:10]} Rb8 {[%emt 0:00:59]} 34. Rxb8 {[%emt 0:00:49]} Rxb8 {[%emt 0:00:15]} 35. h3 {[%emt 0:00:51]} Qe8 {[%emt 0:00:28]} 36. Bc3 {[%emt 0:03:35]} Na4 {[%emt 0:00:36]} 37. Bb4 {[%emt 0:00:13]} Bxb4 {[%emt 0:00:31]} 38. axb4 {[%emt 0:00:08]} Rxb4 {[%emt 0:00:04]} 39. Ra8 {[%emt 0:00:06]} Rb8 {[%emt 0:00:04]} 40. Bc6 {[%emt 0:00:08]} Nc3 {[%emt 0:00:50]} 41. Qf3 {[%emt 0:00:08]} Qc8 {[%emt 0:05:32]} 42. Rxb8 {[%emt 0:00:07]} Qxb8 {[%emt 0:00:04]} 43. Qxc3 {[%emt 0:00:08]} Kf7 {[%emt 0:00:04]} 44. Qd4 {[%emt 0:00:20]} Qb1+ {[%emt 0:00:19]} 1-0

[Event "FIDE WCCC Open-08 2024"]
[Site "Montesilvano"]
[Date "2024.11.22"]
[Round "7.14"]
[White "Zhu, Daniel"]
[Black "Singh, Ian Avery"]
[Result "1-0"]
[ECO "D02"]
[WhiteElo "2050"]
[BlackElo "1713"]
[Annotator "NA RC"]
[PlyCount "61"]
[EventDate "2024.11.18"]
[EventType "swiss"]
[EventCountry "ITA"]
[SourceTitle "playchess.com"]
[Source "ChessBase"]
[SourceQuality "1"]
[TimeControl "5400+30"]

1. d4 {[%emt 0:00:05]} d5 {[%emt 0:00:05]} 2. Bf4 {[%emt 0:00:17]} c5 {[%emt 0:00:08]} 3. e3 {[%emt 0:00:28]} Nc6 {[%emt 0:00:05]} 4. c3 {[%emt 0:01:01]} Nf6 {[%emt 0:00:06]} 5. Nf3 {[%emt 0:02:21]} Qb6 {[%emt 0:00:18]} 6. Qb3 {[%emt 0:01:27]} c4 {[%emt 0:00:10]} 7. Qc2 {[%emt 0:00:23]} Bf5 {[%emt 0:00:07]} 8. Qc1 {[%emt 0:00:44]} e6 {[%emt 0:00:08]} 9. Be2 {[%emt 0:00:16]} Be7 {[%emt 0:00:57]} 10. Nbd2 {[%emt 1:28:28]} O-O {[%emt 0:00:26]} 11. O-O {[%emt 0:00:00]} Rfc8 {[%emt 0:00:29]} 12. Nh4 {[%emt 0:00:00]} Qd8 {[%emt 0:07:28]} 13. Nxf5 {[%emt 0:00:00]} exf5 {[%emt 0:00:02]} 14. Qb1 {[%emt 0:00:00]} Ne4 {[%emt 0:03:15]} 15. Nxe4 {[%emt 0:00:00]} dxe4 {[%emt 0:12:21]} (15... fxe4 $2 {too greedy.} 16. Bg4 $18) 16. Bxc4 {[%emt 0:00:00]} Ne5 {[%emt 0:09:12]} 17. Be2 $16 {[%emt 0:00:00]} Ng6 {[%emt 0:03:37]} 18. Bg3 {[%emt 0:00:00]} Bg5 {[%emt 0:08:17]} 19. c4 {[%emt 0:00:00]} Qe7 {[%emt 0:06:03]} 20. c5 {[%emt 0:00:00]} f4 {[%emt 0:01:56]} 21. exf4 {[%emt 0:00:00]} Bxf4 {[%emt 0:04:43]} 22. Bxf4 {[%emt 0:00:00]} Nxf4 {[%emt 0:01:40]} 23. Bc4 {[%emt 0:00:00]} Qh4 {[%emt 0:07:58]} 24. Kh1 {[%emt 0:00:00]} Rc6 {[%emt 0:15:14]} 25. Qxe4 {[%emt 0:00:00]} Rh6 {[%emt 0:04:12]} 26. h3 {[%emt 0:00:00]} Qg4 {[%emt 0:03:57]} 27. Rfe1 {[%emt 0:00:00]} Rxh3+ {[%emt 0:04:25]} 28. Kg1 {[%emt 0:00:00]} Rf8 {[%emt 0:01:26]} 29. Qxb7 {[%emt 0:00:00]} Rh6 {[%emt 0:04:15]} 30. Qxf7+ {[%emt 0:00:00]} Rxf7 {[%emt 0:00:11]} 31. Re8# {[%emt 0:00:00]} 1-0

[Event "FIDE WCCC Open-08 2024"]
[Site "Montesilvano"]
[Date "2024.11.22"]
[Round "7.15"]
[White "Morozevich, Kirill Aleks"]
[Black "Kapitanski, Furion"]
[Result "1-0"]
[ECO "D31"]
[WhiteElo "1484"]
[BlackElo "1707"]
[Annotator "NA RC"]
[PlyCount "81"]
[EventDate "2024.11.18"]
[EventType "swiss"]
[EventCountry "ITA"]
[SourceTitle "playchess.com"]
[Source "ChessBase"]
[SourceQuality "1"]
[TimeControl "5400+30"]

1. d4 {[%emt 0:00:02]} d5 {[%emt 0:00:05]} 2. c4 {[%emt 0:00:06]} Nc6 {[%emt 0:00:05]} 3. Nc3 {[%emt 0:00:10]} e6 {[%emt 0:14:31]} 4. cxd5 {[%emt 0:00:34]} exd5 {[%emt 0:00:12]} 5. Bf4 {[%emt 0:00:04]} Bf5 {[%emt 0:00:44]} 6. e3 {[%emt 0:00:05]} Nf6 {[%emt 0:00:45]} 7. h3 {[%emt 0:03:21]} Bd6 {[%emt 0:00:39]} 8. Bg5 {[%emt 0:00:19]} Be7 {[%emt 0:02:39]} 9. Bd3 {[%emt 0:00:22]} Bg6 {[%emt 0:11:30]} 10. Nf3 {[%emt 0:01:06]} O-O {[%emt 0:09:39]} 11. O-O Bh5 {[%emt 0:02:11]} 12. Be2 {[%emt 0:02:08]} h6 {[%emt 0:02:50]} 13. Bh4 Re8 {[%emt 0:51:10]} 14. Bxf6 {[%emt 0:05:52]} Bxf6 {[%emt 0:00:00]} 15. Qb3 Ne7 {[%emt 0:00:00]} 16. Qxb7 {[%emt 0:00:29]} Rb8 17. Qxa7 {[%emt 0:00:48]} Rxb2 {[%emt 0:00:00]} 18. Rab1 Rc2 {[%emt 0:00:00]} 19. Rfc1 {[%emt 0:02:20]} Rxc1+ {[%emt 0:00:00]} 20. Rxc1 {[%emt 1:22:44]} Qb8 {[%emt 0:00:00]} 21. Qxb8 {[%emt 0:00:00]} Rxb8 {[%emt 0:00:00]} 22. Rb1 {[%emt 0:00:00]} Ra8 {[%emt 0:04:30]} 23. Rb5 {[%emt 0:00:00]} c6 24. Rc5 {[%emt 0:00:00]} Ra3 {[%emt 0:01:00]} 25. g4 {[%emt 0:00:00]} Bg6 {[%emt 0:00:00]} 26. Ne5 {[%emt 0:00:00]} Bxe5 {[%emt 0:00:00]} 27. dxe5 {[%emt 0:00:00]} f6 {[%emt 0:00:00]} 28. e6 {[%emt 0:00:00]} Be8 {[%emt 0:00:00]} 29. Bd1 {[%emt 0:00:00]} Ra6 {[%emt 0:00:00]} 30. a4 {[%emt 0:00:00]} Nc8 {[%emt 0:00:00]} 31. Nxd5 {[%emt 0:00:00]} cxd5 {[%emt 0:00:00]} 32. Rxc8 {[%emt 0:00:00]} Rxe6 {[%emt 0:00:00]} 33. Bb3 {[%emt 0:00:00]} Re5 {[%emt 0:00:00]} 34. Bxd5+ {[%emt 0:00:00]} Rxd5 {[%emt 0:00:00]} 35. Rxe8+ {[%emt 0:00:00]} Kf7 {[%emt 0:00:00]} 36. Ra8 {[%emt 0:00:00]} Rd1+ {[%emt 0:00:00]} 37. Kg2 {[%emt 0:00:00]} Ra1 {[%emt 0:00:00]} 38. a5 {[%emt 0:00:00]} g6 {[%emt 0:00:00]} 39. a6 {[%emt 0:00:00]} Ke7 {[%emt 0:00:00]} 40. a7 {[%emt 0:00:00]} Kd7 {[%emt 0:00:19]} 41. Rh8 {[%emt 0:00:00]} 1-0

[Event "FIDE WCCC Open-08 2024"]
[Site "Montesilvano"]
[Date "2024.11.22"]
[Round "7.16"]
[White "Lau, Great Boyou"]
[Black "Meiyazhagan, Kaviinayan"]
[Result "0-1"]
[ECO "C45"]
[WhiteElo "1514"]
[BlackElo "1707"]
[Annotator "NA RC"]
[PlyCount "126"]
[EventDate "2024.11.18"]
[EventType "swiss"]
[EventCountry "ITA"]
[SourceTitle "playchess.com"]
[Source "ChessBase"]
[SourceQuality "1"]
[TimeControl "5400+30"]

1. e4 {[%emt 0:00:02]} e5 {[%emt 0:00:24]} 2. Nf3 {[%emt 0:00:08]} Nc6 {[%emt 0:00:05]} 3. d4 {[%emt 0:00:09]} exd4 {[%emt 0:00:21]} 4. Nxd4 {[%emt 0:00:12]} Bc5 {[%emt 0:00:08]} 5. Nb3 {[%emt 0:00:47]} Bb6 {[%emt 0:01:05]} 6. Nc3 {[%emt 0:00:37]} h6 {[%emt 0:02:27]} 7. Bf4 {[%emt 0:01:41]} Nge7 {[%emt 0:06:10]} 8. Qd2 {[%emt 0:01:45]} Ng6 {[%emt 0:01:29]} 9. Bg3 {[%emt 0:02:08]} O-O {[%emt 0:01:21]} 10. O-O-O {[%emt 0:00:48]} d6 {[%emt 0:06:12]} 11. Kb1 {[%emt 0:01:34]} Be6 {[%emt 0:02:30]} 12. f4 a5 {[%emt 0:00:30]} 13. f5 {[%emt 0:03:02]} Bxb3 {[%emt 0:00:30]} 14. cxb3 {[%emt 0:00:30]} Nge5 {[%emt 0:00:30]} 15. Nd5 {[%emt 0:00:30]} Bd4 {[%emt 0:00:30]} 16. Be2 {[%emt 0:00:30]} f6 {[%emt 0:00:30]} 17. Nf4 {[%emt 0:00:30]} Qb8 {[%emt 0:00:30]} 18. Ne6 {[%emt 0:00:30]} Bc5 {[%emt 0:00:30]} 19. Nxf8 {[%emt 0:00:30]} Kxf8 {[%emt 0:00:30]} 20. Bh5 {[%emt 0:00:30]} a4 {[%emt 0:00:30]} 21. bxa4 {[%emt 0:00:30]} Rxa4 {[%emt 0:00:30]} 22. Bxe5 {[%emt 0:00:30]} Nxe5 {[%emt 0:00:30]} 23. Qc2 {[%emt 0:00:30]} Qa7 {[%emt 0:00:30]} 24. b3 {[%emt 0:00:30]} Nc4 {[%emt 0:00:30]} 25. Qc3 {[%emt 0:00:30]} Na3+ {[%emt 0:00:30]} 26. Ka1 {[%emt 0:00:30]} Nb5 {[%emt 0:00:30]} 27. Qb2 {[%emt 0:00:30]} Bd4 {[%emt 0:00:30]} 28. Rxd4 {[%emt 0:00:30]} Rxd4 {[%emt 0:00:30]} 29. Re1 {[%emt 0:00:30]} Qa5 {[%emt 0:00:30]} 30. Rd1 {[%emt 0:00:30]} Rxe4 {[%emt 0:00:30]} 31. Qc2 {[%emt 0:00:30]} Na3 {[%emt 0:00:30]} 32. Qb2 {[%emt 0:00:30]} Re1 {[%emt 0:00:30]} 33. Qc1 {[%emt 0:00:30]} Qe5+ {[%emt 0:00:30]} 34. Qb2 {[%emt 0:00:30]} Nc2+ {[%emt 0:00:30]} 35. Kb1 {[%emt 0:00:30]} Rxd1+ {[%emt 0:00:30]} 36. Bxd1 {[%emt 0:00:30]} Qxb2+ {[%emt 0:00:30]} 37. Kxb2 {[%emt 0:00:30]} Ne3 {[%emt 0:00:30]} 38. Bf3 {[%emt 0:00:30]} c6 {[%emt 0:00:30]} 39. g4 {[%emt 0:00:30]} h5 {[%emt 0:00:30]} 40. h3 {[%emt 0:00:30]} h4 {[%emt 0:00:30]} 41. Kc3 {[%emt 0:00:30]} Ke7 {[%emt 0:00:30]} 42. Kd3 {[%emt 0:00:30]} Nf1 {[%emt 0:00:30]} 43. a4 {[%emt 0:00:30]} d5 {[%emt 0:00:30]} 44. b4 {[%emt 0:00:30]} Kd6 {[%emt 0:00:30]} 45. Bg2 {[%emt 0:00:30]} Ng3 {[%emt 0:00:30]} 46. Bf3 {[%emt 0:00:30]} Ke5 {[%emt 0:00:30]} 47. Bg2 {[%emt 0:00:30]} Ne4 {[%emt 0:00:30]} 48. Ke3 {[%emt 0:00:30]} Nc3 {[%emt 0:00:30]} 49. Bf1 {[%emt 0:00:30]} Nxa4 {[%emt 0:00:30]} 50. Bd3 {[%emt 0:00:30]} b5 {[%emt 0:00:30]} 51. Bc2 {[%emt 0:00:30]} Nb6 {[%emt 0:00:30]} 52. Bb1 {[%emt 0:00:30]} Nc4+ {[%emt 0:00:30]} 53. Kf2 {[%emt 0:00:30]} Kd4 {[%emt 0:00:30]} 54. Ke2 {[%emt 0:00:30]} Kc3 {[%emt 0:00:30]} 55. Ba2 {[%emt 0:00:30]} Kb2 {[%emt 0:00:30]} 56. Bxc4 {[%emt 0:00:30]} dxc4 {[%emt 0:00:30]} 57. g5 {[%emt 0:00:30]} c3 {[%emt 0:00:30]} 58. gxf6 {[%emt 0:00:30]} gxf6 {[%emt 0:00:30]} 59. Kf3 {[%emt 0:00:30]} c2 {[%emt 0:00:30]} 60. Kg4 {[%emt 0:00:30]} c1=Q {[%emt 0:00:30]} 61. Kf3 {[%emt 0:00:30]} Kc3 {[%emt 0:00:30]} 62. Kg4 {[%emt 0:00:30]} Qe3 {[%emt 0:00:30]} 63. Kh5 {[%emt 0:00:30]} Qg5# {[%emt 0:00:30]} 0-1

[Event "FIDE WCCC Open-08 2024"]
[Site "Montesilvano"]
[Date "2024.11.22"]
[Round "7.18"]
[White "Mankovich, Yoav"]
[Black "Czachurski, Ignacy"]
[Result "0-1"]
[ECO "A08"]
[WhiteElo "1490"]
[BlackElo "1672"]
[Annotator "NA RC"]
[PlyCount "52"]
[EventDate "2024.11.18"]
[EventType "swiss"]
[EventCountry "ITA"]
[SourceTitle "playchess.com"]
[Source "ChessBase"]
[SourceQuality "1"]
[TimeControl "5400+30"]

1. e4 {[%emt 0:00:06]} c5 {[%emt 0:00:20]} 2. Nf3 {[%emt 0:00:41]} e6 {[%emt 0:00:36]} 3. d3 {[%emt 0:01:42]} Nc6 {[%emt 0:03:20]} 4. Nbd2 {[%emt 0:00:47]} g6 {[%emt 0:04:01]} 5. g3 {[%emt 0:01:03]} Bg7 {[%emt 0:01:40]} 6. Bg2 {[%emt 0:00:52]} Nge7 {[%emt 0:02:35]} 7. O-O {[%emt 0:01:10]} d5 {[%emt 0:03:17]} 8. Re1 {[%emt 0:01:33]} O-O {[%emt 0:02:05]} 9. c3 {[%emt 0:02:12]} dxe4 {[%emt 0:01:53]} 10. Nxe4 {[%emt 0:04:24]} b6 {[%emt 0:06:40]} 11. Bg5 {[%emt 0:11:31]} h6 {[%emt 0:07:51]} 12. Bf6 {[%emt 0:06:34]} Bxf6 {[%emt 0:04:35]} 13. Nxf6+ {[%emt 0:01:12]} Kg7 {[%emt 0:00:12]} 14. Ng4 {[%emt 0:01:43]} Ba6 {[%emt 0:03:32]} 15. Qd2 {[%emt 0:04:14]} Rh8 {[%emt 0:03:04]} 16. c4 {[%emt 0:11:30]} Rc8 {[%emt 0:05:41]} 17. Re4 {[%emt 0:23:13]} Nd4 {[%emt 0:12:52]} 18. Nxd4 {[%emt 0:02:34]} cxd4 {[%emt 0:00:25]} 19. Qf4 {[%emt 0:08:41]} Nc6 {[%emt 0:07:21]} 20. Ne5 {[%emt 0:03:45]} Nxe5 {[%emt 0:03:19]} 21. Qxe5+ {[%emt 0:00:14]} Qf6 {[%emt 0:00:16]} 22. Qxf6+ {[%emt 0:02:18]} Kxf6 {[%emt 0:00:11]} 23. Rxd4 {[%emt 0:00:39]} Rhd8 {[%emt 0:00:23]} 24. Rf4+ {[%emt 0:07:55]} Ke7 {[%emt 0:01:52]} 25. Bf1 {[%emt 0:00:40]} f5 {[%emt 0:01:37]} 26. b3 {[%emt 0:00:53]} Bb7 {[%emt 0:00:21]} 0-1